bitfinex-derivatives/quotes_ETHF0:USTF0_20251203
["timestamp","ask_amount","ask_price","bid_price","bid_amount"]
[1764767890883,3.2078,3092.9,3092.8,4.3997]
[1764767894293,0.00776444,3093.2,3093.1,4.3997]
[1764767895292,0.00776444,3093.2,3093.1,5.25541856]
[1764767896184,0.00776444,3093.2,3093.1,4.3997]
[1764767896386,0.00776444,3093.2,3093.1,5.25963335]
[1764767896581,0.00776444,3093.2,3093.1,4.3997]
[1764767896781,0.8826,3093.1,3093.0,3.6573]
[1764767896989,0.00776444,3093.2,3093.1,2.3097]
[1764767897295,0.00776444,3093.2,3093.1,4.3997]
[1764767897590,3.2078,3093.7,3093.6,4.3997]
[1764767897890,16.49903838,3093.7,3093.6,4.3997]
[1764767898185,0.8904,3093.6,3093.5,1.3476]
[1764767898590,0.89307351,3093.6,3093.5,1.3476]
[1764767899794,0.89307351,3093.6,3093.5,3.6573]
[1764767899997,0.00267351,3093.6,3093.5,5.7473]
[1764767901792,0.89307351,3093.6,3093.5,3.6573]
[1764767901992,1.1272544,3093.6,3093.5,3.6573]
[1764767902195,1.1272544,3093.6,3093.5,5.7473]
[1764767902392,0.23687145,3093.6,3093.5,5.7473]
[1764767902787,1.12727145,3093.6,3093.5,5.7473]
[1764767902995,1.12727145,3093.6,3093.5,3.6573]
[1764767903796,0.23687145,3093.6,3093.5,5.7473]
[1764767904497,13.28087145,3093.6,3093.5,5.7473]
[1764767904694,13.27487145,3093.6,3093.5,5.7473]
[1764767905192,13.27187145,3093.6,3093.5,5.7473]
[1764767907294,14.16227145,3093.6,3093.5,5.7473]
[1764767907499,0.16164,3092.7,3092.6,3.335e-05]
[1764767907700,0.16165,3092.4,3092.0,1.3476]
[1764767908005,44.24199794,3092.3,3092.0,1.3476]
[1764767908301,46.34024312,3092.3,3091.1,1.14269745]
[1764767908488,3.2078,3091.6,3091.0,1.3476]
[1764767908693,16.49472662,3091.6,3091.5,1.35072537]
[1764767909294,16.49472433,3091.6,3091.5,1.35072537]
[1764767909495,16.2608,3091.6,3091.5,1.35072537]
[1764767910100,16.2608,3091.6,3091.5,3.66042537]
[1764767910302,16.2608,3091.6,3091.5,1.35072537]
[1764767910808,16.65619046,3091.6,3091.5,0.00312537]
[1764767911100,16.65519046,3091.6,3091.5,0.00312537]
[1764767911504,3.60319046,3091.6,3091.5,0.00312537]
[1764767911804,16.2578,3091.6,3091.5,3.66042537]
[1764767912401,3.2078,3091.6,3091.5,5.75042537]
[1764767912599,16.2568,3091.6,3091.5,5.75042537]
[1764767912998,16.2568,3091.6,3091.5,1.35072537]
[1764767913396,16.2568,3091.6,3091.5,0.00312537]
[1764767913610,24.42637637,3091.6,3091.2,0.00484645]
[1764767913802,24.42637637,3091.6,3090.0,3.06164618]
[1764767913803,0.16174,3090.8,3090.0,4.5554]
[1764767914102,3.2078,3090.4,3090.0,1.3476]
[1764767914308,3.2078,3090.4,3090.0,1.3383]
[1764767914503,9.219,3090.3,3090.0,1.3383]
[1764767914709,0.00270255,3090.3,3090.2,2.3489]
[1764767914908,13.05570255,3090.3,3090.0,1.34118711]
[1764767915310,2.09835518,3090.1,3090.0,0.00288711]
[1764767915507,0.16178,3089.9,3089.8,0.00484645]
[1764767915708,0.16179,3089.8,3089.0,1.3383]
[1764767916003,3.2078,3089.1,3089.0,5.9815]
[1764767916203,13.057,3089.1,3089.0,5.9815]
[1764767916706,3.2078,3089.1,3089.0,5.98488129]
[1764767916907,16.2678,3089.1,3089.0,3.63598129]
[1764767917107,16.2678,3089.1,3089.0,1.34168129]
[1764767917504,3.2078,3089.1,3089.0,0.00338129]
[1764767917703,6.6608,3089.1,3089.0,0.00338129]
[1764767917906,6.6608,3089.1,3088.7,0.00485444]
[1764767918302,3.36963,3089.1,3088.7,0.00485444]
[1764767918609,3.36963,3089.1,3088.8,1.3107]
[1764767918610,13.061,3089.0,3088.8,1.3107]
[1764767919007,13.061,3089.0,3088.8,1.31381702]
[1764767919210,3.2078,3089.1,3089.0,2.3884]
[1764767919409,3.2078,3089.1,3089.0,4.6372]
[1764767919605,16.2818,3089.1,3089.0,4.6372]
[1764767919807,16.2818,3089.1,3089.0,2.3884]
[1764767920004,16.2818,3089.1,3088.8,1.31381702]
[1764767920005,3.2078,3089.1,3088.8,1.31381702]
[1764767920309,3.2078,3089.1,3089.0,4.6372]
[1764767920499,16.2958,3089.1,3089.0,4.6372]
[1764767920705,16.2958,3089.1,3089.0,2.3884]
[1764767920907,16.2958,3089.1,3088.8,1.31381702]
[1764767921708,3.2078,3089.1,3089.0,4.6372]
[1764767922014,16.2998,3089.1,3088.8,1.31381702]
[1764767922710,3.2078,3089.1,3089.0,4.6372]
[1764767923112,3.2078,3089.1,3086.9,1.71404618]
[1764767923113,4.75444,3088.8,3087.0,4.68043]
[1764767923312,3.2078,3088.4,3088.3,4.6372]
[1764767923608,15.9088,3088.4,3088.3,4.6372]
[1764767924215,15.9088,3088.4,3088.3,4.6407023]
[1764767925915,20.5014,3088.4,3088.3,0.0035023]
[1764767926214,20.5014,3088.4,3085.8,2.45339745]
[1764767926215,2.3174,3087.6,3086.8,3.2078]
[1764767926412,3.2078,3087.4,3086.8,3.2078]
[1764767926711,3.2078,3087.4,3086.4,4.5185]
[1764767926712,2.3174,3087.1,3086.4,4.5185]
[1764767927216,3.2078,3086.8,3086.4,1.31756602]
[1764767927417,10.144,3086.7,3086.4,1.31756602]
[1764767928314,0.00817139,3087.1,3087.0,5.9479]
[1764767929011,4.976,3088.5,3087.6,5.9479]
[1764767929211,16.3558,3088.4,3087.6,5.9479]
[1764767929618,16.3558,3088.4,3087.9,2.3884]
[1764767930112,16.52120263,3088.4,3087.9,2.3884]
[1764767930305,4.5926,3087.9,3087.8,0.00485444]
[1764767932021,17.7466,3087.9,3087.8,0.00485444]
[1764767933322,15.4714,3087.9,3087.8,0.00485444]
[1764767933810,3.2078,3088.0,3087.9,2.3884]
[1764767934012,3.2078,3088.0,3087.9,4.6372]
[1764767935012,5.5252,3088.0,3087.8,0.00485444]
[1764767935213,4.5926,3087.9,3087.8,0.00485444]
[1764767938426,4.5926,3087.4,3087.0,2.45339745]
[1764767938620,4.5926,3087.4,3086.8,3.2078]
[1764767938924,4.5926,3086.9,3086.8,3.2078]
[1764767939316,4.5926,3086.9,3086.4,3.21142438]
[1764767939624,2.3174,3086.6,3086.5,0.00324164]
[1764767940127,6.34700521,3086.6,3086.5,0.00324164]
[1764767940524,4.5926,3086.6,3086.5,0.00324164]
[1764767941432,2.3174,3086.6,3086.5,0.00324164]
[1764767941622,4.5926,3086.6,3086.5,0.00324164]
[1764767941818,3.2078,3086.8,3086.5,2.39164164]
[1764767942125,13.136,3086.7,3086.6,4.6372]
[1764767942331,3.2078,3086.8,3086.7,4.6372]
[1764767942528,3.2078,3086.8,3086.7,2.3884]
[1764767942726,4.5926,3086.6,3086.5,0.00324164]
[1764767943322,4.7166,3086.6,3086.5,0.00324164]
[1764767944228,17.8616,3086.6,3086.5,0.00324164]
[1764767944824,3.2078,3086.8,3086.7,4.6843]
[1764767945233,3.2078,3087.4,3087.3,2.4145]
[1764767945423,3.2078,3087.4,3087.3,4.6843]
[1764767945733,3.2078,3087.4,3087.3,5.83339891]
[1764767945932,13.149,3087.8,3087.7,4.6843]
[1764767946330,0.00485444,3088.1,3087.9,4.6843]
[1764767946634,3.2078,3088.6,3088.5,2.4145]
[1764767947027,3.2078,3088.6,3088.2,4.6419]
[1764767947331,2.4456,3088.3,3088.2,3.2078]
[1764767947733,0.00315929,3088.3,3088.2,5.6223]
[1764767947925,0.00315929,3088.3,3088.2,3.2078]
[1764767948126,2.44875929,3088.3,3088.2,3.2078]
[1764767948523,2.44875929,3088.3,3087.9,1.1530855]
[1764767948729,0.00315929,3088.3,3088.0,3.2078]
[1764767949030,0.00315929,3088.3,3088.2,2.4145]
[1764767949231,0.00315929,3088.3,3088.2,4.6843]
[1764767949837,0.00315929,3088.3,3088.2,6.1184]
[1764767950139,3.21265444,3088.6,3088.5,4.6843]
[1764767950734,4.7166,3088.3,3088.1,1.14823106]
[1764767951031,4.7166,3088.0,3087.9,0.00485444]
[1764767951239,2.4456,3088.0,3087.9,1e-08]
[1764767952026,11.4458,3088.2,3087.9,2.41450001]
[1764767952229,3.2078,3088.2,3088.1,2.4145]
[1764767952433,3.2078,3088.2,3088.1,4.6843]
[1764767953529,5.6534,3088.2,3087.9,1e-08]
[1764767953929,0.16188,3088.0,3087.9,1e-08]
[1764767954133,2.4456,3086.8,3086.7,3.2078]
[1764767954735,13.157,3087.2,3086.7,5.6223]
[1764767954933,3.2078,3087.4,3086.7,5.6223]
[1764767955132,4.175,3087.4,3087.3,2.4145]
[1764767955433,4.175,3087.4,3086.7,3.2078]
[1764767955434,2.67918511,3087.4,3086.7,3.2078]
[1764767955631,2.4456,3087.4,3086.7,3.2078]
[1764767956232,5.6534,3087.4,3086.7,3.2078]
[1764767957434,3.2078,3087.4,3087.3,2.4145]
[1764767957835,5.6534,3087.4,3087.3,2.4145]
[1764767958135,5.6534,3087.4,3086.7,3.2078]
[1764767958136,5.6534,3087.4,3086.7,4.92184618]
[1764767958639,3.2078,3087.4,3087.3,4.6843]
[1764767959528,3.2078,3088.0,3087.9,2.4145]
[1764767959933,3.2078,3088.0,3087.9,4.6843]
[1764767961542,0.00325761,3088.3,3088.2,6.1184]
[1764767965632,2.44885761,3088.3,3088.2,2.4145]
[1764767965837,2.44885761,3088.3,3087.8,3.2078]
[1764767966242,2.4456,3087.9,3087.8,3.2078]
[1764767966637,0.00325761,3088.3,3087.8,7.8921]
[1764767967842,4.7166,3087.9,3087.8,3.2078]
[1764767968040,2.4456,3087.8,3087.6,1.4341]
[1764767969545,2.4456,3087.7,3087.6,2.4145]
[1764767970445,8.8988,3088.0,3087.6,2.4145]
[1764767971749,2.29810077,3090.2,3090.1,2.564]
[1764767972043,1.5364,3090.5,3089.9,3.2078]
[1764767972241,6.253,3090.5,3090.4,3.2078]
[1764767972441,6.253,3090.0,3089.9,3.2078]
[1764767972632,6.253,3090.0,3089.9,3.21071406]
[1764767972633,6.25616712,3090.0,3089.9,3.21071406]
[1764767972836,3.98516712,3090.0,3089.9,3.21071406]
[1764767973643,6.58936712,3090.0,3089.9,3.21071406]
[1764767974461,6.58936712,3090.0,3089.9,0.00291406]
[1764767974641,6.58936712,3090.0,3089.9,3.21071406]
[1764767974840,6.58936712,3090.0,3089.9,1.406e-05]
[1764767975040,5.3837,3089.7,3089.6,0.00485444]
[1764767975946,5.3837,3089.7,3089.6,0.00768318]
[1764767978349,1.75440521,3092.1,3090.9,2.5548]
[1764767978543,5.8941,3091.3,3091.2,3.2078]
[1764767979350,5.89828097,3091.3,3091.2,3.2078]
[1764767979546,0.00418097,3091.3,3091.2,8.3076]
[1764767979947,0.00485444,3091.6,3091.5,2.5499]
[1764767980150,5.8941,3091.3,3091.2,3.21265444]
[1764767980847,5.89657801,3091.3,3091.2,3.21265444]
[1764767981955,5.8941,3090.7,3090.6,3.2078]
[1764767982354,1.6851,3091.2,3090.6,3.2078]
[1764767982853,1.6851,3091.2,3090.6,3.21265444]
[1764767983348,0.00247801,3091.3,3091.2,5.7974]
[1764767983552,3.2078,3092.5,3091.5,5.7974]
[1764767983754,3.2078,3092.5,3092.0,3.2078]
[1764767984443,0.00342195,3092.4,3092.0,3.21151349]
[1764767984847,5.8941,3092.1,3092.0,3.21151349]
[1764767985048,5.8941,3092.1,3092.0,0.00371349]
[1764767985553,1.68852195,3092.4,3092.0,3.21151349]
[1764767985754,0.00342195,3092.4,3092.3,5.7974]
[1764767986848,0.00342195,3092.4,3092.3,2.8519]
[1764767987454,4.51142195,3092.4,3092.0,3.21151349]
[1764767987951,5.8941,3092.1,3092.0,3.21151349]
[1764767988351,2.8229,3092.1,3092.0,3.21151349]
[1764767988551,1.68852195,3092.4,3092.0,3.21151349]
[1764767988862,5.8941,3092.1,3092.0,3.21151349]
[1764767989551,0.00342195,3092.4,3092.0,6.06341349]
[1764767990155,0.00342195,3092.4,3092.3,5.7974]
[1764767990754,0.00342195,3092.4,3092.3,2.8519]
[1764767990952,0.00342195,3092.4,3092.3,5.7974]
[1764767991154,5.8941,3092.1,3092.0,3.21151349]
[1764767991860,5.8941,3092.1,3092.0,0.00371349]
[1764767992058,1.68852195,3092.4,3092.0,0.00371349]
[1764767993347,5.8941,3092.1,3092.0,0.00371349]
[1764767993748,2.8229,3092.1,3092.0,0.00371349]
[1764767993947,5.8941,3092.1,3092.0,0.00371349]
[1764767995159,4.92574133,3093.4,3092.8,5.7974]
[1764767995364,2.8229,3092.8,3092.7,0.85964881]
[1764767995862,5.8941,3092.7,3092.5,0.85964881]
[1764767996160,5.8941,3092.5,3092.4,4.06744881]
[1764767997754,5.8941,3092.5,3092.4,3.2078]
[1764767999562,0.16155,3094.4,3093.2,5.0928]
[1764767999760,2.8229,3093.8,3093.7,3.2078]
[1764767999955,0.16155,3094.4,3093.7,3.2078]
[1764768000160,5.8941,3093.8,3093.7,3.2078]
[1764768000361,7.5792,3093.6,3093.4,0.8578821]
[1764768000555,0.00286124,3093.6,3093.5,2.5464]
[1764768000761,0.00286124,3093.6,3093.5,5.0928]
[1764768001169,2.8229,3093.5,3093.4,0.8578821]
[1764768001457,5.8941,3093.4,3093.3,3.2078]
[1764768002663,2.8229,3092.8,3092.7,3.2078]
[1764768002969,5.8941,3092.8,3092.7,3.2078]
[1764768003370,1.6851,3093.0,3092.7,3.2078]
[1764768003662,3.1803,3092.8,3092.7,3.2078]
[1764768004486,6.0396,3092.8,3092.7,3.2078]
[1764768004868,3.1803,3092.4,3092.3,3.21265444]
[1764768005065,6.0396,3092.4,3092.3,3.21265444]
[1764768005773,8.1233,3092.4,3092.3,3.21265444]
[1764768006072,8.1233,3092.4,3092.3,0.00485444]
[1764768006464,8.1233,3092.4,3092.0,0.00371349]
[1764768006465,6.0396,3092.1,3092.0,0.00371349]
[1764768006864,6.0396,3092.1,3092.0,1.349e-05]
[1764768006865,9.2474,3092.1,3092.0,1.349e-05]
[1764768007066,9.47915634,3092.1,3092.0,1.349e-05]
[1764768007769,6.27135634,3092.1,3092.0,1.349e-05]
[1764768008470,6.0396,3091.6,3091.5,3.2078]
[1764768008771,6.0396,3091.1,3091.0,0.8578821]
[1764768009075,3.43955634,3091.6,3090.9,4.0656821]
[1764768009076,3.1803,3091.0,3090.9,4.0656821]
[1764768009373,3.18302841,3091.0,3090.9,4.07018884]
[1764768009573,3.18302841,3091.0,3090.9,3.21178126]
[1764768010074,0.00271492,3091.3,3091.2,8.3345]
[1764768011069,0.23234892,3092.3,3091.2,16.62218561]
[1764768011372,0.23234892,3092.3,3091.8,0.85913327]
[1764768012165,0.23631152,3092.3,3091.8,0.85913327]
[1764768014069,3.1803,3091.9,3091.8,0.85913327]
[1764768014565,0.0039626,3092.3,3091.8,4.25373327]
[1764768014769,0.2364379,3092.3,3091.8,4.25373327]
[1764768016780,0.23242816,3092.2,3091.8,4.25373327]
[1764768016974,0.23242816,3092.1,3091.8,4.25373327]
[1764768017280,0.0039626,3092.3,3092.0,3.3946]
[1764768017477,3.1803,3092.1,3091.8,0.85913327]
[1764768017677,3.2078,3092.0,3091.7,0.85913327]
[1764768018269,6.20129,3091.6,3091.5,0.86002906]
[1764768018574,6.20129,3091.6,3090.3,4.07684256]
[1764768018575,6.0396,3090.7,3090.6,1e-08]
[1764768018774,16.153861,3090.7,3090.6,1e-08]
[1764768019773,16.153861,3090.7,3090.6,0.00285315]
[1764768019979,16.153861,3090.7,3089.6,3.2078]
[1764768019980,1.6811,3090.6,3089.6,3.2078]
[1764768020278,3.2078,3090.3,3089.6,3.2078]
[1764768021077,3.21265444,3090.3,3089.6,3.21597536]
[1764768021880,0.16177,3090.2,3089.6,3.21597536]
[1764768022375,3.21265444,3090.3,3089.6,3.21597536]
[1764768023175,3.1803,3089.7,3089.6,0.00817536]
[1764768023382,0.00238578,3089.7,3089.6,6.43087536]
[1764768030282,6.04198578,3089.7,3089.6,0.00817536]
[1764768030488,3.18268578,3089.7,3089.6,3.40277536]
[1764768031198,0.00238578,3089.7,3089.6,6.43087536]
[1764768031685,6.04198578,3089.7,3089.6,0.00817536]
[1764768034290,46.84198578,3089.7,3088.8,1.9118]
[1764768034496,3.3569,3088.8,3088.7,3.2078]
[1764768035086,3.3569,3088.8,3088.7,6.6106]
[1764768035286,3.2078,3089.4,3089.3,3.4028]
[1764768035493,6.5647,3089.4,3089.3,3.4028]
[1764768035692,9.8085,3089.4,3089.0,0.00485444]
[1764768035893,6.6007,3089.1,3089.0,0.00485444]
[1764768036686,3.3569,3089.1,3089.0,3.40765444]
[1764768037895,3.2078,3089.4,3089.3,6.4406]
[1764768039995,13.127,3089.5,3089.4,6.4406]
[1764768040901,19.8241,3089.5,3089.4,3.2073]
[1764768041397,13.127,3089.5,3089.4,6.4406]
[1764768043993,16.4452,3089.5,3089.4,6.4406]
[1764768044699,19.8241,3089.5,3089.4,3.2073]
[1764768045299,16.4452,3089.5,3089.4,6.4406]
[1764768045598,13.127,3089.5,3089.4,6.4406]
[1764768045997,16.4452,3089.5,3089.4,3.2073]
[1764768046299,13.127,3089.5,3089.4,6.4406]
[1764768046501,16.4452,3089.5,3089.4,6.4406]
[1764768047202,13.127,3089.5,3089.4,6.4406]
[1764768047894,13.127,3089.5,3089.1,9.6484]
[1764768048099,13.127,3089.5,3089.4,6.4406]
[1764768051100,13.36018824,3089.5,3089.4,6.4406]
[1764768051306,13.127,3089.5,3089.4,6.4406]
[1764768052100,16.4452,3089.5,3089.4,6.4406]
[1764768052306,20.05728265,3089.5,3089.1,4.35980334]
[1764768052602,19.8241,3089.5,3089.4,3.2073]
[1764768052806,20.05728095,3089.5,3089.4,3.2073]
[1764768053006,20.05728095,3089.5,3089.4,6.4406]
[1764768053202,16.67838095,3089.5,3089.4,6.4406]
[1764768053409,20.05728095,3089.5,3089.1,4.35980334]
[1764768053607,19.8241,3089.5,3089.1,4.35980334]
[1764768053905,19.8241,3089.5,3089.4,6.4406]
[1764768054106,16.67839654,3089.5,3089.4,6.4406]
[1764768054297,20.05729654,3089.5,3089.4,6.4406]
[1764768055007,20.05729654,3089.5,3089.4,3.2073]
[1764768055908,3.3182,3089.3,3089.2,7.59260334]
[1764768056096,6.6971,3089.3,3089.2,7.59260334]
[1764768056300,6.6971,3089.2,3089.1,3.2078]
[1764768056504,6.6971,3089.1,3089.0,0.00485444]
[1764768056707,6.93034761,3089.1,3089.0,0.00485444]
[1764768060114,3.55144761,3089.1,3089.0,8.28965444]
[1764768060409,9.9049,3089.4,3089.3,3.2073]
[1764768060614,9.9049,3089.4,3089.3,6.4406]
[1764768060615,3.44097721,3089.4,3089.3,6.4406]
[1764768060807,0.23317721,3089.4,3089.3,6.4406]
[1764768061011,6.69948578,3089.7,3089.6,3.2073]
[1764768061316,6.93266575,3089.7,3089.1,3.2078]
[1764768061514,6.93027997,3089.6,3089.5,6.4406]
[1764768062218,3.55137997,3089.6,3089.5,6.4406]
[1764768062917,0.23317997,3089.6,3089.5,8.2848]
[1764768063219,0.00238578,3089.7,3089.6,6.4406]
[1764768064723,3.32058578,3089.7,3089.6,6.4406]
[1764768065230,0.00238578,3089.7,3089.6,6.4406]
[1764768065629,6.11748578,3089.7,3089.6,3.2073]
[1764768065830,2.8013,3089.5,3089.4,7.61280334]
[1764768066325,2.80368578,3089.7,3089.6,6.4608]
[1764768066530,0.00238578,3089.7,3089.6,6.4608]
[1764768067531,0.00238578,3089.7,3089.6,8.17906654]
[1764768070020,0.00238578,3089.7,3089.6,6.4608]
[1764768070219,0.23321285,3090.1,3090.0,8.2159]
[1764768070424,0.23321285,3090.1,3090.0,9.37219924]
[1764768070825,3.2078,3090.2,3090.1,6.4608]
[1764768071030,6.24231461,3090.2,3090.1,6.4608]
[1764768071232,6.2460303,3090.2,3090.1,6.4608]
[1764768071425,9.5598303,3090.2,3090.1,3.0928]
[1764768072532,6.1151,3090.1,3090.0,1.15629924]
[1764768072720,6.34831461,3090.1,3090.0,1.15629924]
[1764768073128,6.1151,3090.0,3089.9,7.61709924]
[1764768073829,3.21151569,3090.2,3090.1,6.4608]
[1764768073830,0.00371569,3090.2,3090.1,6.4608]
[1764768074228,0.00371569,3090.2,3090.1,8.19354536]
[1764768074434,0.00371569,3090.2,3090.1,6.4608]
[1764768078635,2.80501569,3090.2,3090.1,8.19438983]
[1764768078835,0.00371569,3090.2,3090.1,6.4608]
[1764768079627,0.34356,3091.0,3090.9,6.4608]
[1764768079835,0.34356,3091.0,3090.9,7.61599296]
[1764768080034,2.8013,3091.6,3091.5,6.4608]
[1764768080243,1.6963,3092.0,3091.5,8.2159]
[1764768080435,2.8013,3091.8,3091.7,3.95856116]
[1764768080630,6.11802392,3091.8,3091.7,3.9610955]
[1764768080831,6.11802392,3091.8,3091.7,0.00253434]
[1764768081034,9.32582392,3091.8,3091.7,0.00253434]
[1764768081235,9.32582392,3091.8,3091.4,0.00485444]
[1764768081236,7.2721,3091.5,3091.4,0.00485444]
[1764768081541,9.25113843,3091.5,3091.4,0.20745444]
[1764768082037,15.25113843,3091.5,3091.4,0.20745444]
[1764768082236,15.25113843,3091.5,3091.4,0.21107132]
[1764768082430,6.1151,3091.1,3091.0,0.86576116]
[1764768082634,6.1151,3090.4,3090.3,4.36235479]
[1764768082834,6.1151,3090.4,3090.3,3.2078]
[1764768083134,2.8013,3090.4,3090.3,9.6686]
[1764768083341,6.1151,3090.4,3090.3,6.30366741]
[1764768084242,6.1151,3090.4,3090.3,3.21086741]
[1764768085338,6.1151,3090.4,3090.3,6.30366741]
[1764768085745,3.2078,3090.7,3090.3,9.67166741]
[1764768086440,6.1151,3090.4,3090.3,6.30366741]
[1764768087140,2.8013,3090.4,3090.3,9.67166741]
[1764768087345,6.1151,3090.4,3090.3,6.30366741]
[1764768087639,6.1151,3090.4,3090.3,3.21086741]
[1764768088034,6.1151,3090.4,3090.3,6.30366741]
[1764768088843,6.1151,3090.4,3090.3,3.21086741]
[1764768089443,6.1151,3090.4,3090.3,0.00306741]
[1764768090141,6.34767617,3090.4,3090.3,0.00306741]
[1764768090439,6.1151,3090.1,3090.0,0.00485444]
[1764768090641,19.37467176,3090.1,3090.0,0.00485444]
[1764768091238,19.37467176,3090.1,3090.0,0.00805843]
[1764768091641,19.1421,3090.1,3090.0,0.00805843]
[1764768091845,19.37465024,3090.1,3090.0,0.00805843]
[1764768092640,19.37465024,3090.1,3089.4,9.6686]
[1764768092641,6.1151,3089.5,3089.4,9.6686]
[1764768093331,6.1151,3089.5,3089.4,6.3006]
[1764768093534,6.11746273,3089.5,3089.4,6.30372022]
[1764768094041,2.80366273,3089.5,3089.4,9.16662022]
[1764768096144,5.90216273,3089.5,3089.4,3.21092022]
[1764768096448,5.90216273,3089.5,3089.4,0.00312022]
[1764768096640,6.97726273,3089.5,3089.4,0.00312022]
[1764768096849,5.7733,3089.2,3089.1,0.00485444]
[1764768097846,5.7733,3089.2,3089.1,0.00778431]
[1764768099943,5.7733,3089.2,3089.1,2.81648431]
[1764768100149,5.7733,3089.2,3089.1,5.40118431]
[1764768100450,13.011,3089.3,3089.2,5.3581]
[1764768101450,0.00236273,3089.5,3089.4,5.3581]
[1764768102745,0.00236273,3089.5,3089.4,8.5659]
[1764768106756,5.32096273,3089.5,3089.4,8.5659]
[1764768107757,2.61606273,3089.5,3089.4,8.5659]
[1764768107958,0.00236273,3089.5,3089.4,8.5659]
[1764768109756,2.61606273,3089.5,3089.4,8.5659]
[1764768110057,5.32096273,3089.5,3089.4,5.9812]
[1764768110554,5.32096273,3089.5,3089.4,8.5659]
[1764768111254,5.3186,3089.2,3089.1,2.78118431]
[1764768111456,5.3186,3089.2,3089.1,0.00778431]
[1764768111652,5.3186,3089.1,3089.0,5.86674721]
[1764768112156,2.6137,3088.7,3088.6,9.71757121]
[1764768112356,2.6137,3088.7,3088.6,8.5659]
[1764768112553,3.2078,3089.1,3088.6,8.5659]
[1764768112756,3.2078,3089.1,3088.6,8.56886478]
[1764768113062,8.5264,3089.1,3089.0,5.3581]
[1764768113358,5.3186,3089.1,3089.0,7.0511]
[1764768114553,5.3186,3089.1,3089.0,4.4664]
[1764768114851,8.5264,3089.1,3089.0,2.7734]
[1764768115358,8.5264,3089.1,3089.0,5.3581]
[1764768115566,8.5264,3089.1,3089.0,2.7734]
[1764768116258,8.5264,3089.1,3089.0,5.3581]
[1764768116459,8.5264,3089.1,3089.0,2.7734]
[1764768116658,8.5264,3089.1,3089.0,5.3581]
[1764768116865,8.5264,3089.1,3089.0,2.7734]
[1764768117358,3.2078,3089.1,3089.0,7.0511]
[1764768117561,3.21016273,3089.5,3089.4,5.3581]
[1764768117761,8.76144501,3089.5,3089.4,2.7734]
[1764768118058,8.76144501,3089.5,3089.4,5.3581]
[1764768118453,8.76144501,3089.5,3089.0,1.693]
[1764768118658,5.55128228,3089.4,3089.3,2.7734]
[1764768118861,2.84638228,3089.4,3089.3,5.3581]
[1764768120058,3.21016273,3089.5,3089.4,5.3581]
[1764768120259,3.44316016,3089.5,3089.4,5.3581]
[1764768121357,3.21016273,3089.5,3089.4,5.3581]
[1764768121753,8.52876273,3089.5,3089.4,5.3581]
[1764768121952,5.82386273,3089.5,3089.4,5.3581]
[1764768122154,3.44323004,3089.5,3089.4,5.3581]
[1764768122553,6.05693004,3089.5,3089.4,5.3581]
[1764768123165,8.76183004,3089.5,3089.4,5.3581]
[1764768123764,8.76183004,3089.5,3089.4,2.7734]
[1764768124362,8.76183004,3089.5,3089.4,5.3958]
[1764768124661,8.76183004,3089.5,3089.0,6.05247121]
[1764768124863,5.53853562,3089.4,3089.3,2.5537]
[1764768125364,0.23313562,3089.4,3089.3,5.1761]
[1764768126971,3.21016273,3089.5,3089.4,5.1761]
[1764768127167,3.4433,3089.5,3089.4,5.1761]
[1764768128467,8.7487,3089.5,3089.4,5.1761]
[1764768128665,6.0509,3089.5,3089.4,5.1761]
[1764768128867,3.4433,3089.5,3089.4,5.1761]
[1764768129166,6.0509,3089.5,3089.4,5.1761]
[1764768130172,8.7487,3089.5,3089.4,5.1761]
[1764768130466,5.3054,3089.1,3089.0,6.91317121]
[1764768130659,5.3054,3089.1,3089.0,5.7615]
[1764768130862,5.3054,3089.1,3089.0,8.3839]
[1764768131172,5.3054,3089.1,3089.0,9.9069]
[1764768131570,4.34117273,3089.5,3089.0,9.9069]
[1764768131772,5.5385741,3089.4,3089.3,2.5537]
[1764768131963,5.3054,3089.1,3089.0,3.2078]
[1764768132272,4.34117273,3089.5,3089.0,9.9069]
[1764768132458,5.5385787,3089.4,3089.3,2.5537]
[1764768132662,5.5385787,3089.4,3089.3,5.1761]
[1764768133774,2.6076,3089.1,3089.0,9.9069]
[1764768134476,5.3054,3089.1,3089.0,9.9069]
[1764768134770,5.3054,3089.1,3089.0,5.7615]
[1764768134977,5.3054,3088.9,3088.8,3.70537121]
[1764768135178,5.3054,3088.9,3088.8,5.1761]
[1764768135369,5.3054,3088.9,3088.8,2.5537]
[1764768136086,5.3054,3088.9,3088.8,5.1761]
[1764768136472,5.3054,3088.9,3088.8,2.5537]
[1764768136669,5.3054,3088.9,3088.8,5.1761]
[1764768137386,2.6076,3088.9,3088.8,5.1761]
[1764768138577,5.3054,3088.9,3088.8,5.1761]
[1764768139381,2.6076,3088.9,3088.8,5.1761]
[1764768139679,5.3054,3088.9,3088.8,5.1761]
[1764768139878,5.3054,3088.9,3088.8,2.5537]
[1764768140181,5.3054,3088.9,3088.8,5.1761]
[1764768141182,5.3054,3088.9,3088.8,2.5537]
[1764768141980,5.3054,3088.8,3088.7,5.1761]
[1764768142176,5.53861768,3088.8,3088.7,5.1761]
[1764768142574,5.53861768,3088.8,3088.7,6.04239989]
[1764768143184,5.3054,3088.8,3088.7,5.1761]
[1764768143480,5.3054,3088.8,3088.7,6.04239989]
[1764768143679,5.3054,3088.8,3088.7,5.1761]
[1764768144986,2.6076,3088.8,3088.7,5.1761]
[1764768145788,5.3054,3088.8,3088.7,5.1761]
[1764768146485,5.81776273,3089.5,3089.4,5.1761]
[1764768146788,5.81776273,3089.5,3089.1,5.1761]
[1764768146789,5.3054,3089.2,3089.1,5.1761]
[1764768148573,2.6076,3089.0,3088.9,6.04187972]
[1764768148981,5.3054,3089.0,3088.9,6.04187972]
[1764768149579,5.3054,3089.0,3088.9,5.1761]
[1764768149777,5.3054,3089.0,3088.9,2.5537]
[1764768150485,2.90691663,3091.0,3090.5,1.212]
[1764768150794,2.90691663,3091.0,3090.0,1.523]
[1764768150795,1.4586,3091.0,3090.9,5.35103161]